bitfinex/quotes_ETHUSD_20260131
["timestamp","ask_amount","ask_price","bid_price","bid_amount"]
[1769880395307,0.53300659,2418.6,2417.3,4.13681016]
[1769880395512,0.01246157,2418.5,2417.2,1.03421733]
[1769880395827,0.01246157,2418.3,2416.9,1.03436748]
[1769880396030,0.01246157,2418.3,2416.5,13.78033164]
[1769880396031,0.01246157,2418.1,2417.0,1.03433853]
[1769880396217,0.01246157,2417.9,2416.6,1.03449176]
[1769880396417,0.01246157,2417.8,2416.7,14.5]
[1769880396619,0.01246157,2418.0,2416.7,14.5]
[1769880396620,0.01246157,2418.1,2416.8,1.03439762]
[1769880396830,1.03395508,2417.9,2416.9,1.03436568]
[1769880397031,1.03369857,2418.5,2416.9,1.03436568]
[1769880397413,13.9081661,2418.0,2415.7,0.0011]
[1769880397616,0.01246157,2417.0,2415.7,0.0011]
[1769880397816,0.01246157,2417.0,2415.5,0.0011]
[1769880397817,0.867,2416.9,2414.8,0.01246157]
[1769880398147,0.01246157,2416.6,2414.9,14.5]
[1769880398449,0.01246157,2416.3,2414.9,14.5]
[1769880398815,1.04718695,2416.1,2414.9,14.5]
[1769880399013,0.53231657,2416.0,2414.9,14.5]
[1769880399232,0.519855,2416.0,2414.9,14.5]
[1769880399750,0.01246157,2415.9,2414.1,0.0011]
[1769880399915,0.519855,2416.0,2414.3,4.14197034]
[1769880400111,0.867,2415.9,2414.4,14.5]
[1769880400315,0.867,2415.9,2414.4,15.53544679]
[1769880400823,1.03485387,2415.8,2414.4,14.5]
[1769880401023,0.60412694,2415.7,2414.4,14.5]
[1769880401220,0.60412694,2415.7,2414.4,15.53543971]
[1769880401421,0.60412694,2415.7,2414.4,14.5]
[1769880401819,0.61658851,2415.7,2414.4,14.5]
[1769880402020,0.61658851,2415.7,2414.9,0.0011]
[1769880402225,0.61658851,2415.7,2414.4,14.5]
[1769880403126,1.03493955,2415.6,2414.4,14.5]
[1769880403325,0.57912863,2415.5,2414.4,14.5]
[1769880403648,0.01246157,2415.4,2414.1,0.0011]
[1769880403952,0.5915902,2415.5,2414.1,0.0011]
[1769880403953,0.867,2415.3,2414.1,0.0011]
[1769880404115,0.867,2415.3,2414.1,14.5011]
[1769880404519,0.57912863,2415.5,2414.4,1.0354462]
[1769880404736,0.01246157,2416.8,2414.6,13.23268266]
[1769880404938,0.01246157,2416.4,2414.6,13.23268266]
[1769880405244,1.03468255,2416.2,2414.7,14.51246157]
[1769880405445,1.03468255,2416.2,2414.7,14.5]
[1769880405649,1.03468255,2416.2,2412.8,0.31912218]
[1769880405650,0.01246157,2414.8,2412.8,0.31912218]
[1769880405817,0.01246157,2414.5,2412.8,0.30666061]
[1769880406143,0.01246157,2414.6,2413.0,1.03603053]
[1769880406316,0.01246157,2414.2,2412.5,13.23268266]
[1769880406514,0.01246157,2414.2,2411.8,0.01246157]
[1769880406515,0.01246157,2414.1,2411.8,13.24514423]
[1769880406717,0.01246157,2413.8,2412.0,13.23268266]
[1769880406915,0.01246157,2414.0,2412.5,1.03624494]
[1769880407349,1.03564617,2414.0,2412.3,14.269038]
[1769880407649,0.51781482,2413.9,2412.6,14.5]
[1769880408153,1.03564617,2414.0,2412.6,27.73268266]
[1769880408359,1.03542445,2414.5,2412.7,13.23268266]
[1769880408641,1.04788602,2414.5,2412.7,13.23268266]
[1769880408814,0.01246157,2414.1,2412.7,13.23268266]
[1769880409021,0.01246157,2413.9,2412.6,14.5]
[1769880409244,1.03566842,2413.9,2412.7,1.03618352]
[1769880409619,1.03558261,2414.1,2412.7,1.03618352]
[1769880409945,1.03549683,2414.3,2412.7,14.26886618]
[1769880410124,1.24716724,2414.7,2413.2,13.23268266]
[1769880410320,0.2118247,2414.7,2413.6,13.23268266]
[1769880410514,0.2118247,2414.7,2413.8,13.23268266]
[1769880410717,1.03493955,2415.6,2413.8,13.23268266]
[1769880411029,1.90278405,2416.0,2414.2,13.24514423]
[1769880411234,1.03485387,2415.8,2414.5,1.03541105]
[1769880411416,1.03485387,2415.8,2414.4,1.03543981]
[1769880411620,1.03485387,2415.8,2414.6,14.5]
[1769880413119,1.03476821,2416.0,2414.6,14.5]
[1769880413316,1.55219816,2415.9,2414.6,15.53533994]
[1769880413626,0.51736836,2415.9,2414.6,15.53533994]
[1769880413832,1.03474901,2416.1,2414.6,28.7680226]
[1769880414540,0.01246157,2416.6,2414.7,13.23268266]
[1769880414743,0.01246157,2417.3,2415.3,13.24514423]
[1769880414922,0.01246157,2418.0,2415.9,13.24514423]
[1769880415125,1.03395508,2417.9,2416.2,13.23268266]
[1769880415328,1.03395508,2417.9,2416.3,14.26732239]
[1769880415618,0.51822368,2417.8,2416.3,14.26732239]
[1769880416040,0.51822368,2417.8,2414.8,4.15346683]
[1769880416041,0.53068525,2417.8,2415.7,13.23268266]
[1769880416245,0.53068525,2417.8,2416.2,1.03466833]
[1769880416246,0.01246157,2417.7,2416.2,1.03466833]
[1769880416559,0.01246157,2417.2,2415.3,13.23268266]
[1769880416729,0.01246157,2417.4,2415.9,1.03477308]
[1769880417055,0.01246157,2417.7,2416.0,1.03474753]
[1769880417251,0.01246157,2417.7,2416.1,1.03472474]
[1769880417460,0.01246157,2417.7,2415.8,13.23268266]
[1769880417461,1.03408338,2417.6,2415.8,13.23268266]
[1769880417667,0.01246157,2417.3,2415.5,1.03494938]
[1769880417888,0.01246157,2417.3,2415.3,4.14012633]
[1769880417889,0.01246157,2417.1,2415.4,1.03500278]
[1769880418172,0.01246157,2416.8,2415.2,13.23268266]
[1769880418388,0.01246157,2416.7,2415.3,1.03506615]
[1769880418599,0.01246157,2416.6,2415.0,0.868]
[1769880418744,0.01246157,2416.6,2414.5,13.81506022]
[1769880418745,0.01246157,2416.5,2414.5,13.81506022]
[1769880418944,0.868,2417.1,2415.6,1.03493771]
[1769880419343,1.03434009,2417.0,2415.4,1.03502525]
[1769880419785,1.03434009,2417.0,2415.4,14.26770791]
[1769880419953,0.60397004,2416.9,2415.4,14.26770791]
[1769880420677,0.60397004,2416.9,2414.9,4.14085777]
[1769880420883,0.01246157,2416.7,2414.5,4.72396708]
[1769880421084,0.60397004,2416.9,2415.3,1.03506434]
[1769880421382,0.60397004,2416.9,2415.3,14.267747]
[1769880421586,0.60397004,2416.9,2415.6,0.01246157]
[1769880421894,1.03428629,2417.2,2415.7,13.23268266]
[1769880423174,4.1488895,2417.6,2415.5,0.01246157]
[1769880423175,1.03412616,2417.5,2416.0,13.24514423]
[1769880423562,0.20990963,2417.7,2416.4,0.01246157]
[1769880423778,1.03395508,2417.9,2416.4,13.23268266]
[1769880423948,0.01246157,2417.3,2415.6,1.03493641]
[1769880424150,0.01246157,2416.9,2415.3,1.03506402]
[1769880424366,0.01246157,2416.6,2415.0,1.03519106]
[1769880424580,0.01246157,2416.4,2414.9,1.03523713]
[1769880424777,0.01246157,2416.1,2414.5,0.58237756]
[1769880424976,0.01246157,2415.5,2413.8,0.0011]
[1769880425186,0.01246157,2415.3,2413.9,1.03564301]
[1769880425479,0.01246157,2415.1,2413.8,0.0011]
[1769880425663,0.01246157,2414.9,2413.8,0.0011]
[1769880425864,0.01246157,2414.9,2413.5,0.0011]
[1769880425865,0.01246157,2414.6,2413.5,0.0011]
[1769880426062,0.01246157,2414.1,2412.6,0.0011]
[1769880426254,0.01246157,2414.4,2412.6,0.0011]
[1769880426457,0.01246157,2413.8,2412.6,0.0011]
[1769880426647,0.01246157,2414.3,2412.6,0.0011]
[1769880426648,14.24917442,2415.1,2412.6,0.0011]
[1769880426864,0.01246157,2413.9,2412.6,0.0011]
[1769880427065,0.01246157,2413.9,2413.5,0.0011]
[1769880427280,0.01246157,2413.9,2412.6,0.0011]
[1769880427281,0.01246157,2414.1,2412.6,1.03728979]
[1769880427479,1.03562551,2414.0,2412.6,0.0011]
[1769880427657,0.93452968,2414.0,2412.8,13.33915608]
[1769880427977,1.04782974,2414.6,2412.8,13.33915608]
[1769880427978,1.03536817,2414.6,2412.8,13.33915608]
[1769880428179,1.03536817,2414.6,2412.6,0.0011]
[1769880428385,1.03536817,2414.6,2413.0,13.35161765]
[1769880428591,1.03519668,2415.0,2413.4,13.35161765]
[1769880428907,0.001,2415.1,2413.7,13.35161765]
[1769880429058,0.001,2415.1,2414.2,13.35161765]
[1769880429248,1.03462179,2416.4,2414.6,13.35161765]
[1769880429553,13.21103631,2417.7,2415.4,13.33915608]
[1769880429554,1.04658773,2417.5,2415.4,13.33915608]
[1769880429752,1.04658773,2417.5,2415.2,1.03511096]
[1769880429753,0.01246157,2417.2,2415.2,1.03511096]
[1769880429954,0.01246157,2417.2,2414.7,17.4928052]
[1769880429955,0.01246157,2416.7,2414.7,1.03530796]
[1769880430152,0.01246157,2416.5,2414.8,1.03527094]
[1769880430352,0.01246157,2416.5,2414.9,1.03520353]
[1769880430598,0.01246157,2416.7,2415.1,1.03514385]
[1769880430751,0.01246157,2416.9,2415.1,1.03514385]
[1769880430948,0.01246157,2417.2,2415.2,14.5]
[1769880431613,1.03429729,2417.1,2415.3,1.0350681]
[1769880431890,1.03429729,2417.1,2415.6,0.01246157]
[1769880432261,0.60377754,2417.8,2415.9,13.35161765]
[1769880432589,4.13522633,2418.3,2416.0,1.33640792]
[1769880432590,1.04628838,2418.2,2416.0,1.33640792]
[1769880432753,0.01246157,2417.4,2415.3,1.0350681]
[1769880432958,0.01246157,2417.7,2415.5,0.01246157]
[1769880433157,17.34634356,2418.5,2416.1,0.01246157]
[1769880433469,1.03391232,2418.0,2416.6,1.03451129]
[1769880433978,1.03391232,2418.0,2416.7,14.5]
[1769880435195,1.04637389,2418.0,2416.7,14.5]
[1769880435757,1.04637389,2418.0,2416.7,15.53446114]
[1769880435758,1.03391232,2418.0,2416.7,15.53446114]
[1769880435960,0.001,2418.4,2416.9,0.01246157]
[1769880436209,1.03474156,2418.4,2417.2,0.01246157]
[1769880436366,1.03474156,2418.4,2416.9,13.33915608]
[1769880436796,1.03474156,2418.4,2417.0,0.01246157]
[1769880437118,1.03474156,2418.4,2416.9,13.33915608]
[1769880437318,1.03474156,2418.4,2416.7,16.41492271]
[1769880437319,0.51697068,2418.3,2416.7,15.53446114]
[1769880437493,0.51697068,2418.3,2416.7,14.5]
[1769880437823,1.90082681,2418.2,2416.7,14.5]
[1769880437994,0.01246157,2418.0,2416.7,14.5]
[1769880438190,0.01246157,2417.9,2415.8,1.03482728]
[1769880438446,0.01246157,2417.7,2416.0,1.03475923]
[1769880438739,0.01246157,2417.7,2416.1,15.53472502]
[1769880438888,1.03382681,2418.2,2416.7,1.03445674]
[1769880439091,1.03482681,2418.2,2416.8,0.01246157]
[1769880439312,1.03482681,2418.2,2416.7,1.04691831]
[1769880439513,0.56871047,2418.1,2416.7,1.04691831]
[1769880439833,1.03482681,2418.2,2417.1,1.04675886]
[1769880439834,0.001,2418.2,2417.1,1.04675886]
[1769880440042,0.001,2418.4,2417.5,0.01246157]
[1769880440240,0.001,2418.4,2417.4,0.01246157]
[1769880440518,1.03314323,2419.9,2418.0,0.01246157]
[1769880440721,1.03314323,2419.9,2418.4,0.01246157]
[1769880441020,0.001,2420.1,2418.6,0.01246157]
[1769880441219,0.001,2420.1,2418.9,0.01246157]
[1769880441413,1.03401621,2420.1,2419.0,14.5]
[1769880441615,0.51659149,2420.0,2419.0,14.5]
[1769880441994,1.03310054,2419.9,2419.0,14.5]
[1769880442596,1.03310054,2419.9,2418.3,0.867]
[1769880442822,1.03310054,2419.9,2417.9,0.01246157]
[1769880443034,0.56820089,2419.8,2418.0,14.5]
[1769880443233,0.01246157,2419.7,2418.0,14.5]
[1769880443533,0.56820089,2419.8,2418.4,1.03373477]
[1769880443738,0.56820089,2419.8,2418.2,1.03379569]
[1769880443912,0.56820089,2419.8,2417.7,13.35161765]
[1769880444120,1.03318593,2419.7,2418.3,14.5]
[1769880444623,0.56820089,2419.8,2418.4,13.35161765]
[1769880444824,1.03403183,2420.1,2418.7,13.33915608]
[1769880445410,1.03403183,2420.1,2418.3,14.5]
[1769880445609,1.54356461,2420.1,2418.3,14.5]
[1769880445819,1.03403183,2420.1,2418.3,14.5]
[1769880446025,1.03310054,2419.9,2418.3,14.5]
[1769880446226,1.03310054,2419.9,2418.3,15.5337708]
[1769880446439,1.03310054,2419.9,2418.3,14.5]
[1769880446608,1.03310054,2419.9,2418.3,15.53375002]
[1769880447161,1.03310054,2419.9,2418.5,0.01246157]
[1769880447441,0.9106928,2419.8,2418.3,15.53375002]
[1769880447606,0.56833581,2419.8,2418.3,15.53375002]
[1769880447807,0.56833581,2419.8,2418.3,14.5]
[1769880448009,1.03327133,2419.5,2417.3,1.03419909]
[1769880448338,0.01246157,2419.0,2416.4,0.01246157]
[1769880448545,0.01246157,2418.7,2416.5,14.5]
[1769880448744,0.01246157,2418.7,2416.6,0.01246157]
[1769880448921,0.01246157,2418.7,2416.4,1.52896314]
[1769880449124,0.01246157,2418.0,2416.3,1.78847491]
[1769880449332,0.01246157,2418.0,2415.8,14.5]
[1769880449333,0.01246157,2417.6,2415.8,14.5]
[1769880449635,0.01246157,2417.6,2414.7,0.01246157]
[1769880449636,0.01246157,2416.9,2415.2,1.03510014]
[1769880449819,0.867,2416.9,2415.5,1.03496624]
[1769880450014,1.03442568,2416.8,2415.6,14.5]
[1769880450215,1.03442568,2416.8,2415.6,15.53493171]
[1769880450414,0.867,2416.9,2415.7,0.01246157]
[1769880450610,0.867,2416.9,2415.8,0.01246157]
[1769880450922,1.03436118,2417.0,2415.6,15.54739328]
[1769880451126,1.03436118,2417.0,2415.7,1.98243423]
[1769880451321,1.03408338,2417.6,2415.8,13.35161765]
[1769880451527,1.03395508,2417.9,2416.6,0.0011]
[1769880452030,1.03404061,2417.7,2416.6,0.0011]
[1769880452229,0.51826646,2417.6,2416.6,0.0011]
[1769880452432,1.03391232,2418.0,2416.6,0.0011]
[1769880452837,0.867,2418.1,2417.0,0.01246157]
[1769880453135,1.90087505,2418.1,2416.6,0.0011]
[1769880453443,1.63751038,2418.1,2417.1,14.5]
[1769880453616,1.03382867,2418.2,2417.1,14.5]
[1769880454440,1.03369857,2418.5,2417.1,15.53429017]
[1769880454641,0.28792062,2418.7,2417.5,13.35161765]
[1769880454942,1.03333625,2419.4,2417.8,0.01246157]
[1769880455142,1.03333625,2419.4,2418.0,0.01246157]
[1769880455534,1.03333625,2419.4,2418.1,14.5]
[1769880455725,1.54999436,2419.4,2418.1,15.95249231]
[1769880455925,1.03333625,2419.4,2418.1,15.95249231]
[1769880456124,1.03333625,2419.4,2418.1,15.96495388]
[1769880456341,0.001,2419.7,2418.3,0.01246157]
[1769880456547,0.001,2419.7,2418.5,13.35161765]
[1769880456747,0.001,2419.7,2418.9,0.01246157]
[1769880456953,0.001,2419.7,2417.9,13.65057469]
[1769880457250,0.001,2419.7,2418.5,14.5]
[1769880457449,0.5176575,2419.7,2418.5,14.5]
[1769880457652,0.001,2419.7,2418.6,0.01246157]
[1769880457837,0.001,2419.7,2418.5,14.5]
[1769880458250,0.001,2419.7,2418.8,13.63811312]
[1769880458442,0.001,2419.7,2418.9,1.03352763]
[1769880458631,0.001,2419.7,2418.8,14.67166081]
[1769880458828,0.001,2419.7,2418.5,15.53367154]
[1769880459029,0.001,2419.7,2418.5,14.5]
[1769880459351,0.001,2419.7,2418.8,14.67167119]
[1769880459554,0.001,2420.1,2418.9,0.01246157]
[1769880459854,0.28344425,2420.8,2419.6,0.01246157]
[1769880460026,1.03233265,2421.7,2419.8,0.01246157]
[1769880460227,0.51615801,2421.6,2420.3,0.01246157]
[1769880460439,1.03231435,2421.8,2420.5,0.01246157]
[1769880460754,1.03231435,2421.8,2420.4,1.03288712]
[1769880461056,1.03231435,2421.8,2420.6,14.5]
[1769880461227,2.04806667,2421.8,2419.9,13.63811312]
[1769880461434,2.06052824,2421.8,2419.9,13.63811312]
[1769880461630,2.04806667,2421.8,2420.3,1.03291541]
[1769880461830,2.04806667,2421.8,2420.4,14.5]
[1769880462357,1.03231435,2421.8,2420.5,1.03284445]
[1769880462553,4.99497629,2422.5,2420.4,15.53287929]
[1769880462554,4.12881471,2422.1,2420.4,15.53287929]
[1769880462759,1.03220478,2422.0,2420.6,0.01246157]
[1769880462970,1.03220478,2422.0,2420.6,13.07344496]
[1769880463132,1.03211956,2422.2,2420.8,0.01246157]
[1769880463731,1.03211956,2422.2,2420.9,14.5]
[1769880464435,0.001,2422.3,2420.9,14.5]
[1769880465256,0.01246157,2422.0,2420.2,1.0329709]
[1769880465445,0.01246157,2422.0,2420.1,1.30859065]
[1769880465648,0.01246157,2421.7,2420.1,1.30859065]
[1769880465953,0.01246157,2421.3,2419.5,1.03326815]
[1769880466156,0.87846157,2421.3,2419.5,14.5]
[1769880466355,1.03254584,2421.2,2419.6,14.09421202]
[1769880466684,1.03254584,2421.2,2419.9,0.01246157]
[1769880466955,1.03254584,2421.2,2419.8,0.01246157]
[1769880467155,1.03254584,2421.2,2420.1,14.5]
[1769880467727,1.03254584,2421.2,2419.7,2.8594212]
[1769880467956,1.03254584,2421.2,2419.8,0.01246157]
[1769880468160,1.03254584,2421.2,2419.9,14.51246157]
[1769880468758,1.03254584,2421.2,2420.0,1.04551942]
[1769880468951,0.866,2421.3,2420.1,0.01246157]
[1769880469157,4.12852321,2422.2,2420.5,0.01246157]
[1769880469462,4.12852321,2422.2,2420.7,0.01246157]
[1769880469661,13.56311267,2422.1,2420.6,14.5]
[1769880469960,1.76916359,2422.0,2420.1,0.51902124]
[1769880470160,0.01246157,2421.8,2419.9,13.06098339]
[1769880470361,0.01246157,2421.8,2420.2,14.5]
[1769880470362,0.01246157,2421.5,2420.2,14.5]
[1769880470578,0.01246157,2421.6,2420.2,14.5]
[1769880470868,0.01246157,2421.4,2419.7,0.866]
[1769880471075,0.01246157,2421.4,2419.3,13.06098339]
[1769880471076,0.01246157,2421.1,2419.3,13.06098339]
[1769880471373,0.532409,2421.4,2418.7,0.01246157]
[1769880471374,0.51994743,2421.4,2419.6,1.04566266]
[1769880471553,1.03241792,2421.5,2419.6,1.04566266]
[1769880471746,1.03241792,2421.5,2419.7,1.03318279]
[1769880472169,1.03241792,2421.5,2419.9,0.01246157]
[1769880472369,1.03241792,2421.5,2420.0,0.01246157]
[1769880472667,1.03241792,2421.5,2420.2,0.01246157]
[1769880472875,1.03241792,2421.5,2420.3,1.0329298]
[1769880473080,0.98086157,2422.1,2420.4,14.5]
[1769880473244,0.98086157,2422.1,2420.5,1.45]
[1769880474078,0.866,2422.1,2420.5,1.45]
[1769880474256,0.866,2422.1,2420.6,0.01246157]
[1769880474446,0.866,2422.1,2420.5,1.46246157]
[1769880474762,1.0322474,2421.9,2420.6,1.59749231]
[1769880475146,1.0322474,2421.9,2419.7,13.06098339]
[1769880475147,0.001,2421.3,2419.7,13.06098339]
[1769880475373,0.001,2421.3,2420.0,1.03302576]
[1769880475573,0.001,2421.3,2420.1,14.5]
[1769880475883,0.001,2421.3,2418.9,0.01246157]
[1769880476173,0.01246157,2421.0,2418.7,1.03360663]
[1769880476372,0.11486157,2420.8,2418.5,17.19576307]
[1769880476682,0.866,2420.9,2419.4,1.03331383]
[1769880476882,1.03271645,2420.8,2419.0,1.03346503]
[1769880477476,1.03271645,2420.8,2419.1,0.51674047]
[1769880477849,1.03271645,2420.8,2419.1,0.52920204]
[1769880478057,1.03271645,2420.8,2419.1,0.51674047]
[1769880479075,1.03271645,2420.8,2419.1,1.03342162]
[1769880479374,1.03271645,2420.8,2419.1,1.03343608]
[1769880479571,1.03271645,2420.8,2419.0,1.03347514]
[1769880479781,14.59582912,2420.8,2418.6,5.86774566]
[1769880480003,0.60295823,2420.7,2419.1,1.03340895]
[1769880480281,1.03271645,2420.8,2419.3,0.01246157]
[1769880480448,1.03271645,2420.8,2419.5,0.01246157]
[1769880480654,1.03271645,2420.8,2419.7,0.01246157]
[1769880480892,0.001,2421.3,2419.9,0.01246157]
[1769880481176,0.001,2421.3,2420.0,13.06098339]
[1769880481387,0.001,2421.3,2419.9,0.51907124]
[1769880481705,0.01246157,2421.0,2419.9,0.51907124]
[1769880481979,0.01246157,2420.6,2419.0,1.03346091]
[1769880482160,0.01246157,2420.4,2418.8,4.13425108]
[1769880482359,0.01246157,2420.4,2418.5,4.1346928]
[1769880482572,0.01246157,2420.0,2418.7,1.03360726]
[1769880482750,0.01246157,2420.0,2418.7,1.03360915]
[1769880482954,1.03310054,2419.9,2418.7,1.03360915]
[1769880483177,1.03310054,2419.9,2418.6,1.03363312]
[1769880483478,0.01246157,2419.8,2418.3,1.03488305]
[1769880483652,0.01246157,2419.5,2418.3,0.0011]
[1769880483974,0.01246157,2419.2,2418.3,0.0011]
[1769880484273,0.01246157,2419.6,2418.4,1.03374081]
[1769880484478,0.01246157,2419.6,2418.3,0.0011]
[1769880484479,4.14486373,2420.1,2418.3,0.0011]
[1769880484685,1.03310054,2419.9,2418.6,1.03362845]
[1769880484974,1.03310054,2419.9,2418.3,0.0011]
[1769880485154,0.01246157,2419.7,2418.3,0.0011]
[1769880485481,0.01246157,2419.8,2418.3,0.0011]
[1769880485794,0.01246157,2419.4,2418.3,0.0011]
[1769880485976,0.01246157,2418.9,2417.1,0.0011]
[1769880486158,0.01246157,2418.7,2417.1,0.0011]
[1769880486651,0.866,2418.8,2417.9,1.0339289]
[1769880486857,0.866,2418.8,2417.4,12.73496761]
[1769880487054,0.866,2418.8,2417.5,2.32133065]
[1769880487259,1.0456475,2419.7,2417.7,12.72250604]
[1769880487505,1.65585727,2419.8,2418.5,0.0011]
[1769880487790,1.0329298,2420.3,2418.5,12.72360604]
[1769880488099,1.91021005,2420.3,2418.6,1.2723606]
[1769880488756,1.03291364,2420.4,2418.7,12.73496761]
[1769880488955,1.03291364,2420.4,2418.8,1.04603193]
[1769880489157,1.03291364,2420.4,2418.8,1.03357036]
[1769880489567,0.01246157,2420.1,2418.5,0.0011]
[1769880489766,0.01246157,2419.6,2418.5,0.0011]
[1769880490187,0.11486157,2420.3,2418.5,0.0011]
[1769880490390,0.01246157,2419.8,2418.5,0.0011]
[1769880490562,0.01246157,2419.6,2418.5,0.0011]
[1769880490757,0.01246157,2419.4,2418.5,0.0011]
[1769880491061,4.13195428,2420.2,2418.5,0.0011]
[1769880491259,4.14441585,2420.2,2418.5,1.2735706]
[1769880491477,0.866,2420.5,2418.8,12.73496761]
[1769880491794,0.01246157,2421.1,2418.8,12.73496761]
[1769880491795,1.0326491,2421.0,2419.4,12.72250604]
[1769880491968,0.001,2421.3,2419.6,12.73496761]
[1769880492288,1.03353006,2421.3,2419.6,12.72250604]
[1769880492490,1.03353006,2421.3,2419.8,0.01246157]
[1769880492790,1.03353006,2421.3,2419.8,13.99724896]
[1769880492994,0.001,2421.3,2420.0,13.75556389]
[1769880493296,0.001,2421.3,2419.6,0.01246157]
[1769880493297,0.001,2421.3,2419.4,13.58850604]
[1769880493475,0.001,2421.3,2419.7,4.13269587]
[1769880493671,0.001,2421.3,2419.8,1.44638647]
[1769880494208,0.01246157,2421.1,2418.8,13.58850604]
[1769880494373,0.01246157,2421.1,2419.9,1.03309933]
[1769880494573,0.01346157,2421.3,2419.8,1.03311868]
[1769880494787,0.01346157,2421.3,2419.9,1.54968189]
[1769880495082,1.03254584,2421.2,2419.9,1.54968189]
[1769880495283,1.03254584,2421.2,2419.9,1.54968634]
[1769880495903,1.03254584,2421.2,2419.8,1.03311508]
[1769880496116,0.01246157,2420.9,2418.8,0.866]
[1769880496271,0.01246157,2420.4,2418.6,12.72250604]
[1769880496472,0.01246157,2420.0,2418.5,0.0011]
[1769880496671,0.01246157,2419.7,2418.5,0.0011]
[1769880496980,0.01246157,2419.5,2418.5,1.03479558]
[1769880497192,1.03310054,2419.9,2418.5,0.0011]
[1769880498281,1.04556211,2419.9,2418.5,0.0011]
[1769880498510,0.01246157,2419.8,2418.5,0.0011]
[1769880498720,0.01246157,2420.6,2418.5,12.72360604]
[1769880499002,1.04534869,2420.4,2418.5,12.72360604]
[1769880499307,1.04534869,2420.4,2418.6,13.76862344]
[1769880499308,1.03288712,2420.4,2418.6,13.76862344]
[1769880499605,4.13112492,2420.7,2419.0,12.72250604]
[1769880500122,1.03275911,2420.7,2419.1,12.72250604]
[1769880500409,4.13111464,2421.3,2419.5,12.73496761]
[1769880500410,1.0335211,2421.3,2419.5,12.73496761]
[1769880500603,0.001,2421.3,2419.9,0.01246157]
[1769880500772,12.9832489,2421.2,2419.9,0.01246157]
[1769880500979,12.9832489,2419.6,2418.8,0.01246157]
[1769880501276,0.06230785,2418.3,2416.2,1.03468255]
[1769880501475,0.01246157,2418.5,2416.1,1.03470065]
[1769880501476,0.01246157,2417.8,2416.1,1.03470065]
[1769880501691,0.01246157,2417.3,2416.1,1.03471118]
[1769880501987,0.01246157,2417.3,2415.9,1.03479767]
[1769880502193,1.00608586,2417.4,2416.1,1.03471136]
[1769880502392,0.23333032,2417.9,2416.1,1.03471766]
[1769880502607,0.01246157,2418.6,2416.6,12.72250604]
[1769880502794,0.11486157,2419.4,2417.2,0.01246157]
[1769880503000,0.11486157,2419.4,2417.1,12.73496761]
[1769880503001,0.01246157,2418.9,2417.1,12.72250604]
[1769880503179,0.01246157,2418.9,2416.8,1.03442568]
[1769880503180,1.0461174,2418.6,2416.8,1.03442568]
[1769880503377,0.01246157,2418.5,2416.8,1.03442568]
[1769880503584,1.0461174,2418.6,2416.9,12.73496761]
[1769880503585,1.03365583,2418.6,2416.9,12.73496761]
[1769880503808,1.03365583,2418.6,2416.9,12.72250604]
[1769880504995,1.0461174,2418.6,2416.9,12.72250604]
[1769880505613,1.0461174,2418.6,2417.0,1.03434009]
[1769880505813,0.51932023,2418.5,2417.0,1.03434009]
[1769880506328,0.51932023,2418.5,2417.0,13.7693077]
[1769880506627,1.03350125,2419.0,2417.6,12.72250604]
[1769880506911,4.24786908,2419.6,2416.9,1.03435864]
[1769880506912,0.01246157,2418.9,2416.9,1.03435864]
[1769880507082,0.01246157,2418.4,2416.0,0.01246157]
[1769880507281,0.01246157,2417.9,2415.9,12.72250604]
[1769880507591,1.03399784,2417.8,2416.0,2.30700087]
[1769880507789,0.01246157,2417.7,2415.9,12.72250604]
[1769880508009,0.01246157,2417.5,2415.9,12.72250604]
[1769880508215,0.01246157,2417.5,2415.2,0.87846157]
[1769880508216,0.01246157,2417.2,2415.3,1.03504482]
[1769880508509,0.01246157,2417.2,2415.2,13.58850604]
[1769880508510,4.13525497,2418.4,2417.1,0.01246157]
[1769880508722,0.01246157,2418.2,2416.3,12.72250604]
[1769880508933,0.01246157,2417.9,2415.6,13.75743053]
[1769880509091,0.01246157,2417.4,2415.6,12.72250604]
[1769880509293,0.01246157,2417.6,2415.8,1.03483393]
[1769880509492,1.03412616,2417.5,2415.7,4.13956872]
[1769880509811,1.03412616,2417.5,2415.9,12.72250604]
[1769880510109,0.51830924,2417.4,2415.9,12.72250604]
[1769880510315,0.51830924,2417.4,2415.6,1.03493169]
[1769880510316,0.53077081,2417.4,2415.6,1.03493169]
[1769880510527,0.51830924,2417.4,2415.9,0.01246157]
[1769880510816,0.51830924,2417.4,2416.1,0.0011]
[1769880511408,0.51830924,2417.4,2416.1,12.72360604]
[1769880511614,0.11486157,2417.9,2416.1,12.72360604]
[1769880511786,0.01246157,2417.8,2416.1,13.75832804]
[1769880511981,0.01246157,2417.4,2416.1,0.0011]
[1769880512182,0.01246157,2417.3,2416.1,0.0011]
[1769880512378,0.01246157,2417.4,2416.1,0.0011]
[1769880512590,0.01246157,2417.3,2416.1,0.0011]
[1769880513109,0.01246157,2417.7,2416.1,0.0011]
[1769880513426,1.03391232,2418.0,2416.1,13.75830917]
[1769880513586,1.03404061,2417.7,2416.1,0.0011]
[1769880513781,0.51702031,2417.6,2416.1,0.0011]
[1769880514187,0.52948188,2417.6,2416.1,0.0011]
[1769880514492,0.51702031,2417.6,2416.1,0.0011]
[1769880514990,0.52948188,2417.6,2416.1,0.0011]
[1769880515708,1.03412616,2417.5,2416.1,0.0011]
[1769880515914,0.57001127,2417.4,2416.1,0.0011]
[1769880517192,0.53093463,2417.9,2416.2,13.11470227]
[1769880517193,1.03399784,2417.8,2416.2,13.11470227]
[1769880517504,1.03386956,2418.1,2416.5,13.11470227]
[1769880517706,1.03386956,2418.1,2416.1,0.01356157]
[1769880517707,0.01246157,2418.0,2416.1,1.03579643]
[1769880517888,0.01246157,2418.0,2416.6,14.5]
[1769880518386,4.14793983,2418.3,2416.6,14.5]
[1769880518713,0.01246157,2418.2,2416.6,14.5]
[1769880518914,0.01246157,2418.1,2416.6,14.5]
[1769880519614,1.03404061,2417.7,2416.6,14.5]
[1769880519823,0.51826646,2417.6,2416.6,14.5]
[1769880520735,1.03401827,2417.8,2416.6,15.53449577]
[1769880521516,1.90080582,2418.3,2416.7,13.98412293]
[1769880521814,1.90079462,2418.3,2416.9,1.03438288]
[1769880522027,1.90078841,2418.3,2416.9,1.03438288]
[1769880522314,1.90078841,2418.3,2417.0,1.91560374]
[1769880522819,1.90078841,2418.3,2416.6,14.5]
[1769880522999,0.01246157,2418.2,2416.7,1.03443959]
[1769880523323,0.01246157,2418.2,2416.6,14.5]
[1769880523324,0.001,2417.9,2416.8,1.03438875]